fUSD/lending_fUSD_20251231
["ID","MTS","AMOUNT","RATE_DAILY","PERIOD"]
[400195491,1767189044504,-2325.146442,0.0001224,2]
[400195492,1767189044517,-727.65822404,0.0001224,2]
[400195493,1767189044871,-511.55661779,0.0001224,2]
[400195494,1767189044915,-536.770178,0.0001224,2]
[400195501,1767189046082,-7952.77,0.0001224,2]
[400195502,1767189046098,-1354.6537082,0.0001224,2]
[400195503,1767189046111,-522.02000001,0.0001224,2]
[400195504,1767189046125,-303.8,0.0001224,2]
[400195505,1767189046140,-1115.8401823,0.0001224,2]
[400195541,1767189050152,-170.90443543,0.0001224,2]
[400195542,1767189051619,-237.68370971,0.0001224,2]
[400195543,1767189054185,-300.0,0.0001224,2]
[400195544,1767189056197,-932.80499287,0.0001224,2]
[400195545,1767189057138,55684.02443778,0.00043182,30]
[400195546,1767189062494,150.0,0.00012239,2]
[400195547,1767189090122,184.14,0.00011996,2]
[400195548,1767189093555,1522.429,0.00011995,2]
[400195549,1767189125169,-248.00629029,0.0001224,2]
[400195550,1767189128356,-174.2340719,0.0001224,2]
[400195551,1767189129639,-372.14780938,0.0001224,2]
[400195552,1767189131667,-412.29400612,0.0001224,2]
[400195553,1767189133199,-157.07740716,0.0001224,2]
[400195554,1767189134574,-417.33616778,0.0001224,2]
[400195555,1767189135979,-532.48866,0.0001224,2]
[400195556,1767189139053,-224.27345533,0.0001224,2]
[400195557,1767189142233,-403.23602683,0.0001224,2]
[400195558,1767189143766,-238.3378692,0.0001224,2]
[400195559,1767189144134,203.90681689,0.00012179,2]
[400195560,1767189145205,-253.15861808,0.0001224,2]
[400195561,1767189150004,-250.0,0.0001224,2]
[400195562,1767189151452,-212.59252486,0.0001224,2]
[400195563,1767189154155,-196.34804293,0.0001224,2]
[400195564,1767189156351,-369.77900279,0.0001224,2]
[400195565,1767189158457,-291.99904632,0.0001224,2]
[400195566,1767189160249,-239.69824731,0.0001224,2]
[400195567,1767189161814,-286.77639543,0.0001224,2]
[400195568,1767189163919,-183.97002739,0.0001224,2]
[400195569,1767189165663,-176.88943954,0.0001224,2]
[400195570,1767189167537,-217.57605846,0.0001224,2]
[400195571,1767189171249,-240.27207393,0.0001224,2]
[400195572,1767189172334,852.5912,0.0001214,2]
[400195573,1767189173467,-172.16790242,0.0001224,2]
[400195574,1767189175617,-197.05912056,0.0001224,2]
[400195575,1767189177153,-169.88064077,0.0001224,2]
[400195576,1767189180535,-309.33107923,0.0001224,2]
[400195577,1767189181249,300.0,0.00012239,2]
[400195578,1767189184021,-200.0,0.0001224,2]
[400195579,1767189186787,-205.34122303,0.0001224,2]
[400195580,1767189189437,-198.33595259,0.0001224,2]
[400195581,1767189192103,-198.16501142,0.0001224,2]
[400195582,1767189196403,-153.72,0.0001224,2]
[400195583,1767189199146,-173.00309202,0.0001224,2]
[400195584,1767189201751,-177.91265073,0.0001224,2]
[400195585,1767189207957,-163.14635088,0.0001224,2]
[400195586,1767189209461,-803.44715269,0.0001224,2]
[400195587,1767189211021,-168.26156098,0.0001224,2]
[400195588,1767189221575,2241.332994,0.00012179,2]
[400195589,1767189241233,148.55380382,0.00012239,2]
[400195590,1767189241259,151.44619618,0.00012239,2]
[400195591,1767189241310,500.0,0.00012239,2]
[400195592,1767189241377,500.0,0.00012239,2]
[400195593,1767189241424,500.0,0.00012239,2]
[400195594,1767189241469,500.0,0.00012239,2]
[400195595,1767189241520,500.0,0.00012239,2]
[400195596,1767189241566,500.0,0.00012239,2]
[400195597,1767189241610,500.0,0.00012239,2]
[400195598,1767189241655,500.0,0.00012239,2]
[400195599,1767189241702,500.0,0.00012239,2]
[400195600,1767189241749,500.0,0.00012239,2]
[400195601,1767189241799,241.34393933,0.00012239,2]
[400195602,1767189241856,500.0,0.00012239,2]
[400195603,1767189241971,500.0,0.00012239,2]
[400195604,1767189242364,150.0,0.00012239,2]
[400195605,1767189263823,500.0,0.0001214,2]
[400195606,1767189275252,-190.91840058,0.0001224,2]
[400195620,1767189294363,190.9184,0.00012179,2]
[400195621,1767189301198,300.0,0.00012239,2]
[400195622,1767189301254,1200.0,0.00012239,2]
[400195623,1767189301482,300.0,0.00012239,2]
[400195633,1767189418401,200.0,0.00011932,2]
[400195634,1767189422753,150.0,0.00012239,2]
[400195635,1767189424608,178.41846477,0.00012179,2]
[400195636,1767189425790,236.85274615,0.00012239,2]
[400195637,1767189426660,201.03025357,0.00012179,2]
[400195638,1767189426689,3432.02690765,0.00012179,2]
[400195639,1767189434826,6567.98309235,0.0001214,2]
[400195640,1767189434859,10000.01,0.0001214,2]
[400195641,1767189434891,10000.01,0.0001214,2]
[400195642,1767189434922,10000.01,0.0001214,2]
[400195643,1767189434953,10000.01,0.0001214,2]
[400195644,1767189434986,10000.01,0.0001214,2]
[400195645,1767189435017,10000.01,0.0001214,2]
[400195646,1767189435048,10000.01,0.0001214,2]
[400195647,1767189435079,10000.01,0.0001214,2]
[400195648,1767189435114,10000.01,0.0001214,2]
[400195649,1767189480085,3862.33240725,0.00012139,2]
[400195650,1767189481179,300.0,0.00012139,2]
[400195651,1767189491872,3120.55,0.00011762,2]
[400195652,1767189499878,159.41,0.00011761,2]
[400195653,1767189511987,165.7969223,0.00012139,2]
[400195654,1767189512040,500.0,0.00012139,2]
[400195655,1767189512589,532.84127155,0.00012139,2]
[400195656,1767189513440,500.0,0.00012139,2]
[400195657,1767189513563,193.48265993,0.00012139,2]
[400195658,1767189541277,300.0,0.00012139,2]
[400195660,1767189601305,1200.0,0.00012139,2]
[400195661,1767189601397,300.0,0.00012139,2]
[400195662,1767189602705,150.0,0.00012139,2]
[400195663,1767189667480,166.66,0.00012137,2]
[400195664,1767189669810,261.0,0.00012079,2]
[400195665,1767189693520,1217.943,0.00011897,2]
[400195666,1767189709921,156.1161567,0.00012053,2]
[400195667,1767189713680,2227.97,0.00011731,2]
[400195686,1767189765985,500.0,0.00011729,2]
[400195687,1767189781201,300.0,0.00012139,2]
[400195688,1767189782784,150.0,0.00012139,2]
[400195689,1767189808912,2766.9778161,0.0001214,2]
[400195690,1767189812886,303.3430272,0.0001209,2]
[400195691,1767189812913,3103.5170838,0.0001209,2]
[400195692,1767189823995,250.0,0.00012013,2]
[400195693,1767189886176,328.39570891,0.0001214,2]
[400195694,1767189901367,1200.0,0.00012139,2]
[400195695,1767189901407,300.0,0.00012139,2]
[400195696,1767189901448,300.0,0.00012139,2]
[400195697,1767189918697,229.42780923,0.0001214,2]
[400195698,1767189950484,231.43896469,0.0001214,2]
[400195699,1767189961288,300.0,0.00012139,2]
[400195700,1767189962353,150.0,0.00012139,2]
[400195701,1767189982179,1896.9094563,0.0001214,2]
[400195702,1767189990662,3570.30244728,0.0001209,2]
[400195703,1767189990858,156.11615667,0.0001209,2]
[400195704,1767189993370,500.0,0.00012139,2]
[400195705,1767189993420,222.98889009,0.00012139,2]
[400195706,1767190021283,300.0,0.00012139,2]
[400195708,1767190141231,64.43056683,0.00012139,2]
[400195709,1767190141258,235.56943317,0.00012139,2]
[400195710,1767190142735,150.0,0.00012139,2]
[400195711,1767190188034,158.18778015,0.00012065,2]
[400195712,1767190191347,-233.76509833,0.0001214,2]
[400195713,1767190193952,-188.83753862,0.0001214,2]
[400195714,1767190196525,-161.05259991,0.0001214,2]
[400195715,1767190198676,-153.65871412,0.0001214,2]
[400195716,1767190199358,3066.1740999,0.00012065,2]
[400195717,1767190200331,-305.40988178,0.0001214,2]
[400195718,1767190201165,300.0,0.00012139,2]
[400195719,1767190201210,1200.0,0.00012139,2]
[400195720,1767190201847,-236.31408483,0.0001214,2]
[400195721,1767190203394,249.0,0.0001214,2]
[400195722,1767190204523,-335.22943184,0.0001214,2]
[400195723,1767190206368,-574.7156495,0.0001214,2]
[400195724,1767190210085,-257.45117937,0.0001214,2]
[400195725,1767190212799,-315.51067724,0.0001214,2]
[400195726,1767190217826,-182.34796988,0.0001214,2]
[400195727,1767190219407,-227.40672175,0.0001214,2]
[400195728,1767190223460,-201.15117636,0.0001214,2]
[400195729,1767190224818,-333.14415119,0.0001214,2]
[400195730,1767190228484,-213.7111902,0.0001214,2]
[400195731,1767190230981,-259.00579205,0.0001214,2]
[400195740,1767190232060,-56766.73254699,0.0001214,2]
[400195741,1767190232171,-18421.69864954,0.0001214,2]
[400195742,1767190232287,-38513.06826834,0.0001214,2]
[400195744,1767190232299,-10564.84497033,0.0001214,2]
[400195757,1767190232977,-203.86,0.0001214,2]
[400195758,1767190234936,-193.66464589,0.0001214,2]
[400195759,1767190238135,-455.08116405,0.0001214,2]
[400195760,1767190238191,-3275.40696767,0.0001214,2]
[400195761,1767190238250,-4741.20157618,0.0001214,2]
[400195762,1767190238262,-6160.80176806,0.0001214,2]
[400195763,1767190238309,-500.0,0.0001214,2]
[400195764,1767190238322,-140408.45886317,0.0001214,2]
[400195765,1767190238334,-4010.95249867,0.0001214,2]
[400195766,1767190238369,-359.7300006,0.0001214,2]
[400195790,1767190240332,-716.41134364,0.0001214,2]
[400195791,1767190240344,-672.3443471,0.0001214,2]
[400195792,1767190240355,-563.909601,0.0001214,2]
[400195793,1767190241278,-1.7e-07,0.0001214,2]
[400195794,1767190242223,-182.78144382,0.0001214,2]
[400195814,1767190244111,-806.07438054,0.0001214,2]
[400195815,1767190244127,-725.24904595,0.0001214,2]
[400195816,1767190244139,-600.99564498,0.0001214,2]
[400195817,1767190245111,-1097.0,0.0001214,2]
[400195818,1767190245126,-522.07369526,0.0001214,2]
[400195821,1767190246164,-1784.2996234,0.0001214,2]
[400195822,1767190246176,-524.162615,0.0001214,2]
[400195823,1767190246188,-257.42503718,0.0001214,2]
[400195824,1767190246221,-355.23206854,0.0001214,2]
[400195825,1767190246282,-96086.88754419,0.0001214,2]
[400195826,1767190246294,-657.65642569,0.0001214,2]
[400195830,1767190252144,500.0,0.00012139,2]
[400195831,1767190252195,500.0,0.00012139,2]
[400195832,1767190252245,188.39329778,0.00012139,2]
[400195833,1767190260591,156.11615667,0.00012065,2]
[400195834,1767190261732,300.0,0.00012139,2]
[400195835,1767190277301,150.0,0.00012083,2]
[400195836,1767190277463,150.0,0.00012138,2]
[400195837,1767190277882,150.0,0.00012083,2]
[400195838,1767190277942,150.0,0.00012083,2]
[400195839,1767190278105,150.000001,0.00012138,2]
[400195840,1767190293556,974.355,0.00011897,2]
[400195842,1767190322910,150.0,0.00012139,2]
[400195843,1767190325678,-172.04565819,0.0001214,2]
[400195844,1767190326591,150.0,0.00012083,2]
[400195845,1767190326773,200.0,0.00012138,2]
[400195846,1767190326912,150.0,0.00012083,2]
[400195847,1767190328120,-268.0,0.0001214,2]
[400195848,1767190330816,-228.4019628,0.0001214,2]
[400195849,1767190332297,-637.05320832,0.0001214,2]
[400195850,1767190334356,-409.24786967,0.0001214,2]
[400195851,1767190336429,-281.24640997,0.0001214,2]
[400195852,1767190338563,-206.29079003,0.0001214,2]
[400195853,1767190340713,-277.37620578,0.0001214,2]
[400195854,1767190342380,-299.28773384,0.0001214,2]
[400195855,1767190345048,-349.85972081,0.0001214,2]
[400195856,1767190347685,-231.28536514,0.0001214,2]
[400195857,1767190347963,500.0,0.00012139,2]
[400195858,1767190348022,500.0,0.00012139,2]
[400195859,1767190348073,305.50082948,0.00012139,2]
[400195860,1767190349723,-301.69,0.0001214,2]
[400195861,1767190353087,-306.11979734,0.0001214,2]
[400195863,1767190355769,-231.90626418,0.0001214,2]
[400195864,1767190357637,-803.00598487,0.0001214,2]
[400195865,1767190359500,-167.82927429,0.0001214,2]
[400195866,1767190362207,-258.64198529,0.0001214,2]
[400195867,1767190366045,-222.73693625,0.0001214,2]
[400195868,1767190368705,-263.72438278,0.0001214,2]
[400195869,1767190370224,-245.25,0.0001214,2]
[400195870,1767190373191,-382.94071773,0.0001214,2]
[400195871,1767190376454,-206.70642253,0.0001214,2]
[400195872,1767190378034,-173.57223932,0.0001214,2]
[400195873,1767190379754,-160.72436453,0.0001214,2]
[400195874,1767190381380,300.0,0.00012139,2]
[400195875,1767190382433,-274.66608259,0.0001214,2]
[400195876,1767190384702,-159.94907617,0.0001214,2]
[400195877,1767190386884,-260.00560258,0.0001214,2]
[400195878,1767190390284,-265.33343603,0.0001214,2]
[400195879,1767190391760,-261.72404386,0.0001214,2]
[400195880,1767190393838,-301.16189551,0.0001214,2]
[400195881,1767190395927,-193.88020266,0.0001214,2]
[400195882,1767190398055,-296.48,0.0001214,2]
[400195883,1767190399275,150.0,0.00011843,2]
[400195884,1767190401755,-317.78926653,0.0001214,2]
[400195885,1767190403961,-316.0,0.0001214,2]
[400195886,1767190407167,150.0,0.00012083,2]
[400195887,1767190407866,209.80705324,0.00012083,2]
[400195888,1767190408336,150.0,0.00012083,2]
[400195889,1767190408485,150.0,0.00012138,2]
[400195890,1767190409041,150.0,0.00012083,2]
[400195891,1767190409227,150.0,0.00012138,2]
[400195892,1767190409902,150.0,0.00012083,2]
[400195893,1767190409977,150.0,0.00012083,2]
[400195894,1767190410632,1903.541962,0.00012079,2]
[400195895,1767190411377,154.54206526,0.00012083,2]
[400195896,1767190412387,500.0,0.00012139,2]
[400195897,1767190412438,500.0,0.00012139,2]
[400195898,1767190412504,500.0,0.00012139,2]
[400195899,1767190412555,500.0,0.00012139,2]
[400195900,1767190412619,231.69589444,0.00012139,2]
[400195901,1767190412763,150.0,0.00012083,2]
[400195902,1767190412809,150.0,0.00012083,2]
[400195903,1767190413259,20.56719458,0.00012138,2]
[400195904,1767190413287,129.43280542,0.00012138,2]
[400195905,1767190413559,150.0,0.00012083,2]
[400195906,1767190414338,-159.38825297,0.0001214,2]
[400195907,1767190416362,-497.78667359,0.0001214,2]
[400195908,1767190418452,-165.51901003,0.0001214,2]
[400195909,1767190421495,-413.79018312,0.0001214,2]
[400195910,1767190423042,-356.1549256,0.0001214,2]
[400195911,1767190425822,-214.32357581,0.0001214,2]
[400195912,1767190428071,-183.76855541,0.0001214,2]
[400195913,1767190431556,187.97,0.00011625,2]
[400195914,1767190431760,-172.57015114,0.0001214,2]
[400195915,1767190433296,-360.06694479,0.0001214,2]
[400195916,1767190436565,500.0,0.00012139,2]
[400195917,1767190436617,500.0,0.00012139,2]
[400195918,1767190436669,500.0,0.00012139,2]
[400195919,1767190436734,349.13468572,0.00012139,2]
[400195920,1767190445160,-166.66,0.0001214,2]
[400195922,1767190447931,-153.74906024,0.0001214,2]
[400195923,1767190449390,-373.88504757,0.0001214,2]
[400195924,1767190450234,1000.0,0.00012139,2]
[400195925,1767190451918,-312.3725317,0.0001214,2]
[400195926,1767190454925,-329.57088581,0.0001214,2]
[400195927,1767190455139,500.0,0.00012139,2]
[400195928,1767190455454,500.0,0.00012139,2]
[400195929,1767190455811,500.0,0.00012139,2]
[400195930,1767190456916,-175.63794801,0.0001214,2]
[400195931,1767190457975,-253.58674719,0.0001214,2]
[400195932,1767190459352,-170.42911419,0.0001214,2]
[400195933,1767190461853,-377.00298481,0.0001214,2]
[400195934,1767190461913,-7465.36,0.0001214,2]
[400195935,1767190462197,-10000.01,0.0001214,2]
[400195936,1767190462325,-10000.01,0.0001214,2]
[400195937,1767190462475,-10000.01,0.0001214,2]
[400195938,1767190462646,-10000.01,0.0001214,2]
[400195939,1767190462782,-10000.01,0.0001214,2]
[400195940,1767190462966,-10000.01,0.0001214,2]
[400195941,1767190463141,-10000.01,0.0001214,2]
[400195942,1767190463252,-10000.01,0.0001214,2]
[400195943,1767190463404,-10000.01,0.0001214,2]
[400195944,1767190463560,-10000.01,0.0001214,2]
[400195945,1767190463707,-10000.01,0.0001214,2]
[400195946,1767190463802,-204.2285977,0.0001214,2]
[400195947,1767190463852,-10000.01,0.0001214,2]
[400195948,1767190464675,-10000.01,0.0001214,2]
[400195949,1767190464803,-10000.01,0.0001214,2]
[400195950,1767190465166,-10000.01,0.0001214,2]
[400195951,1767190465185,-10000.01,0.0001214,2]
[400195952,1767190465230,-10000.01,0.0001214,2]
[400195953,1767190465355,-10000.01,0.0001214,2]
[400195954,1767190465494,-10000.01,0.0001214,2]
[400195955,1767190465659,-10000.01,0.0001214,2]
[400195956,1767190465830,-10000.01,0.0001214,2]
[400195957,1767190465988,-10000.01,0.0001214,2]
[400195958,1767190466113,-10000.01,0.0001214,2]
[400195959,1767190466251,-10000.01,0.0001214,2]
[400195960,1767190466373,-10000.01,0.0001214,2]
[400195961,1767190466522,-10000.01,0.0001214,2]
[400195962,1767190466642,-384.22816528,0.0001214,2]
[400195963,1767190466676,-10000.01,0.0001214,2]
[400195964,1767190469669,-179.35263376,0.00012153,2]
[400195965,1767190472050,-204.28178883,0.0001204,2]
[400195966,1767190477322,-264.31997141,0.0001204,2]
[400195967,1767190479975,-216.30916856,0.0001204,2]
[400195968,1767190482798,-265.79197358,0.0001204,2]
[400195969,1767190485260,-521.3234117,0.0001204,2]
[400195970,1767190487764,-203.44747085,0.0001204,2]
[400195971,1767190490929,-282.10114214,0.0001204,2]
[400195972,1767190494946,-285.80296856,0.0001204,2]
[400195973,1767190497103,4740.33106451,0.0001204,2]
[400195974,1767190498406,-214.19703144,0.0001204,2]
[400195975,1767190499966,-213.60054963,0.0001204,2]
[400195976,1767190500694,3213.27220257,0.00012039,2]
[400195977,1767190501185,300.0,0.00012039,2]
[400195978,1767190501233,1200.0,0.00012039,2]
[400195979,1767190501272,300.0,0.00012039,2]
[400195980,1767190501313,246.40673292,0.00012039,2]
[400195981,1767190501338,53.59326708,0.00012039,2]
[400195982,1767190502011,-330.56250104,0.0001204,2]
[400195983,1767190503325,150.0,0.00012039,2]
[400195984,1767190506224,-163.29233995,0.0001204,2]
[400195985,1767190510807,-385.58781885,0.0001204,2]
[400195986,1767190512693,151.0,0.00012037,2]
[400195987,1767190515013,-211.45180362,0.0001204,2]
[400195988,1767190517039,-166.81349127,0.0001204,2]
[400195989,1767190520830,179.40524348,0.0001194,2]
[400195990,1767190521264,-196.08527416,0.0001204,2]
[400195991,1767190523718,-198.09561381,0.0001204,2]
[400195992,1767190526714,-200.0,0.0001204,2]
[400195993,1767190528184,-591.87149223,0.0001204,2]
[400195994,1767190531508,-214.41218115,0.0001204,2]
[400195995,1767190533866,-229.86321288,0.0001204,2]
[400195996,1767190543885,1739.273105,0.0001198,2]
[400195997,1767190565184,-153.7373739,0.0001204,2]
[400195998,1767190567336,-422.88094698,0.0001204,2]
[400195999,1767190585710,3889.10845185,0.0001194,2]
[400196000,1767190592356,246.1395233,0.00012039,2]
[400196001,1767190592399,169.13908778,0.00012039,2]
[400196002,1767190592444,500.0,0.00012039,2]
[400196003,1767190592927,486.99545833,0.00012039,2]
[400196004,1767190594842,500.0,0.00012039,2]
[400196005,1767190594883,577.12520897,0.00012039,2]
[400196006,1767190594926,500.0,0.00012039,2]
[400196007,1767190594968,500.37214344,0.00012039,2]
[400196008,1767190595015,357.85851077,0.00012039,2]
[400196009,1767190595040,142.14148923,0.00012039,2]
[400196010,1767190595081,500.0,0.00012039,2]
[400196011,1767190595133,343.87441975,0.00012039,2]
[400196012,1767190595180,500.0,0.00012039,2]
[400196013,1767190595243,500.0,0.00012039,2]
[400196014,1767190595500,500.0,0.00012039,2]
[400196015,1767190595556,371.18345262,0.00012039,2]
[400196016,1767190595604,500.0,0.00012039,2]
[400196017,1767190595662,500.0,0.00012039,2]
[400196018,1767190595749,473.06946116,0.00012039,2]
[400196019,1767190595795,500.0,0.00012039,2]
[400196020,1767190595879,500.0,0.00012039,2]
[400196021,1767190595984,500.0,0.00012039,2]
[400196022,1767190596083,500.0,0.00012039,2]
[400196023,1767190596158,500.0,0.00012039,2]
[400196024,1767190596251,500.0,0.00012039,2]
[400196025,1767190596324,500.0,0.00012039,2]
[400196026,1767190596412,500.0,0.00012039,2]
[400196027,1767190596556,500.0,0.00012039,2]
[400196028,1767190596623,500.0,0.00012039,2]
[400196029,1767190596695,500.0,0.00012039,2]
[400196030,1767190596754,169.74117724,0.00012039,2]
[400196031,1767190596795,330.25882276,0.00012039,2]
[400196032,1767190596856,500.0,0.00012039,2]
[400196033,1767190596934,500.0,0.00012039,2]
[400196034,1767190597037,500.0,0.00012039,2]
[400196035,1767190597105,411.48500863,0.00012039,2]
[400196036,1767190597169,500.0,0.00012039,2]
[400196037,1767190597250,500.0,0.00012039,2]
[400196038,1767190597307,500.0,0.00012039,2]
[400196039,1767190597390,500.0,0.00012039,2]
[400196040,1767190597449,500.0,0.00012039,2]
[400196041,1767190597502,500.0,0.00012039,2]
[400196042,1767190597556,500.0,0.00012039,2]
[400196043,1767190597621,500.0,0.00012039,2]
[400196044,1767190597721,500.0,0.00012039,2]
[400196045,1767190597784,500.0,0.00012039,2]
[400196046,1767190597837,500.0,0.00012039,2]
[400196047,1767190597890,500.0,0.00012039,2]
[400196048,1767190597945,500.0,0.00012039,2]
[400196049,1767190605602,1258.26616861,0.00011874,2]
[400196050,1767190605630,10000.01,0.00011874,2]
[400196051,1767190605656,4467.76383139,0.00011874,2]
[400196053,1767190610951,925.36,5.942e-05,2]
[400196054,1767190611076,925.36,6.254e-05,2]
[400196055,1767190611278,925.36,6.567e-05,2]
[400196056,1767190611509,925.36,6.88e-05,2]
[400196057,1767190611749,925.36,7.192e-05,2]
[400196058,1767190611811,500.0,0.00012039,2]
[400196059,1767190611865,405.44616861,0.00012039,2]
[400196060,1767190611898,94.55383139,0.00012039,2]
[400196061,1767190611957,500.0,0.00012039,2]
[400196062,1767190612021,500.0,0.00012039,2]
[400196063,1767190612075,500.0,0.00012039,2]
[400196064,1767190612139,500.0,0.00012039,2]
[400196065,1767190612201,500.0,0.00012039,2]
[400196066,1767190612255,500.0,0.00012039,2]
[400196067,1767190612316,500.0,0.00012039,2]
[400196068,1767190612366,925.36,7.505e-05,2]
[400196069,1767190612418,500.0,0.00012039,2]
[400196070,1767190612477,500.0,0.00012039,2]
[400196071,1767190612532,500.0,0.00012039,2]
[400196072,1767190612594,500.0,0.00012039,2]
[400196073,1767190612650,500.0,0.00012039,2]
[400196074,1767190612699,500.0,0.00012039,2]
[400196075,1767190612748,500.0,0.00012039,2]
[400196076,1767190612797,500.0,0.00012039,2]
[400196077,1767190612844,925.36,7.818e-05,2]
[400196078,1767190612892,500.0,0.00012039,2]
[400196079,1767190612939,54.73616861,0.00012039,2]
[400196080,1767190612970,445.26383139,0.00012039,2]
[400196081,1767190613015,500.0,0.00012039,2]
[400196082,1767190613063,500.0,0.00012039,2]
[400196083,1767190613108,500.0,0.00012039,2]
[400196084,1767190613157,500.0,0.00012039,2]
[400196085,1767190613199,925.36,8.131e-05,2]
[400196086,1767190613246,500.0,0.00012039,2]
[400196087,1767190613297,500.0,0.00012039,2]
[400196088,1767190613340,925.36,8.443e-05,2]
[400196089,1767190613392,925.36,8.756e-05,2]
[400196090,1767190613463,925.36,9.069e-05,2]
[400196091,1767190613672,925.36,9.381e-05,2]
[400196092,1767190613869,925.36,9.694e-05,2]
[400196093,1767190614068,925.36,0.00010007,2]
[400196094,1767190614272,77.22616861,0.0001032,2]
[400196095,1767190614302,848.13383139,0.0001032,2]
[400196096,1767190614471,925.36,0.00010632,2]
[400196097,1767190614663,925.36,0.00010945,2]
[400196098,1767190614887,925.36,0.00011258,2]
[400196099,1767190615082,925.36,0.0001157,2]
[400196100,1767190615330,925.36,0.00011883,2]
[400196101,1767190621605,300.0,0.00012039,2]
[400196102,1767190624110,201.62767683,0.0001194,2]
[400196103,1767190636825,151.0,0.00012037,2]
[400196104,1767190665970,282.55634577,0.00011983,2]
[400196105,1767190681223,300.0,0.00012039,2]
[400196106,1767190683182,150.0,0.00012039,2]
[400196107,1767190692225,1200.0,0.00012039,2]
[400196108,1767190706341,500.0,0.00012039,2]
[400196109,1767190706388,190.89682083,0.00012039,2]
[400196111,1767190756810,151.0,0.00012037,2]
[400196112,1767190761595,1097.99532518,0.0001203,2]
[400196113,1767190761623,8340.02685155,0.0001203,2]
[400196114,1767190772934,1659.98314845,0.00011883,2]
[400196115,1767190772961,155.91685155,0.00011883,2]
[400196116,1767190790320,-215.00547981,0.0001204,2]
[400196117,1767190792185,-190.20455927,0.0001204,2]
[400196118,1767190799436,491.309544,0.0001198,2]
[400196119,1767190801256,188.81967891,0.0001194,2]
[400196120,1767190801558,300.0,0.00012039,2]
[400196121,1767190801602,300.0,0.00012039,2]
[400196122,1767190801742,1200.0,0.00012039,2]
[400196123,1767190803215,249.0,0.0001204,2]
[400196124,1767190807415,200.0,0.0001204,2]
[400196125,1767190810175,2279.4647,0.0001194,2]
[400196126,1767190863483,150.0,0.00012039,2]
[400196127,1767190875584,151.0,0.00012037,2]
[400196128,1767190893533,1084.17,0.00011799,2]
[400196129,1767190893580,169.068,0.00011799,2]
[400196130,1767190907555,1075.5627485,0.0001194,2]
[400196131,1767190921339,300.0,0.00012039,2]
[400196132,1767190959805,1174.6602,0.0001194,2]
[400196133,1767190971970,531.03827704,0.0001194,2]
[400196134,1767190972003,3482.19279565,0.0001194,2]
[400196135,1767190991608,1165.0,0.00012039,2]
[400196136,1767190994346,152.0,0.00012037,2]
[400196137,1767191010890,3580.60725082,0.0001194,2]
[400196138,1767191042838,150.0,0.00012039,2]
[400196142,1767191081435,165.21721909,0.0001194,2]
[400196143,1767191101302,1200.0,0.00012039,2]
[400196144,1767191101468,104.99273444,0.00012039,2]
[400196145,1767191101496,195.00726556,0.00012039,2]
[400196146,1767191119877,9805.00273444,9e-05,2]
[400196147,1767191119905,739.05737777,9e-05,2]
[400196148,1767191125555,1025.62390604,0.000108,2]
[400196149,1767191161476,8235.32871619,8e-05,2]